[Event "Titled Tuesday Blitz July 4 Late 2023"]
[White "Molenda, Marcin"]
[Black "Shuvalova, Polina"]
[WhiteFideId "1173065"]
[BlackFideId "24171760"]
[WhiteElo "2475"]
[BlackElo "2692"]
[Result "0-1"]
[Round "2"]
[TimeControl "180+2"]
[Date "2023.07.04"]
[WhiteClock "0:00:02"]
[BlackClock "0:00:40"]
[Board "60"]

1. e4 {[%clk 0:03:00]}  c6 {[%clk 0:02:59]} 2. Nf3 {[%clk 0:02:56]}  d5 {[%clk 0:03:00]} 3. d3 {[%clk 0:02:57]}  g6 {[%clk 0:03:00]} 4. Nbd2 {[%clk 0:02:46]}  Bg7 {[%clk 0:02:59]} 5. g3 {[%clk 0:02:46]}  e5 {[%clk 0:02:59]} 6. Bg2 {[%clk 0:02:46]}  Ne7 {[%clk 0:02:59]} 7. O-O {[%clk 0:02:47]}  O-O {[%clk 0:03:00]} 8. c3 {[%clk 0:02:46]}  h6 {[%clk 0:02:57]} 9. Re1 {[%clk 0:02:42]}  dxe4 {[%clk 0:02:57]} 10. dxe4 {[%clk 0:02:42]}  Be6 {[%clk 0:02:57]} 11. Qc2 {[%clk 0:02:39]}  Nd7 {[%clk 0:02:54]} 12. Nb3 {[%clk 0:02:37]}  a5 {[%clk 0:02:52]} 13. Be3 {[%clk 0:02:37]}  Qc7 {[%clk 0:02:51]} 14. Nc5 {[%clk 0:02:31]}  Nxc5 {[%clk 0:02:49]} 15. Bxc5 {[%clk 0:02:32]}  b6 {[%clk 0:02:49]} 16. Be3 {[%clk 0:02:32]}  Rfd8 {[%clk 0:02:46]} 17. Rad1 {[%clk 0:02:31]}  Kh7 {[%clk 0:02:38]} 18. b3 {[%clk 0:02:27]}  a4 {[%clk 0:02:37]} 19. Rxd8 {[%clk 0:02:27]}  Rxd8 {[%clk 0:02:36]} 20. Rd1 {[%clk 0:02:27]}  axb3 {[%clk 0:02:35]} 21. axb3 {[%clk 0:02:27]}  Ng8 {[%clk 0:02:27]} 22. Rd2 {[%clk 0:02:15]}  Rxd2 {[%clk 0:02:16]} 23. Nxd2 {[%clk 0:02:15]}  Nf6 {[%clk 0:02:16]} 24. f3 {[%clk 0:02:15]}  Nd7 {[%clk 0:02:13]} 25. Bf1 {[%clk 0:02:12]}  b5 {[%clk 0:01:57]} 26. c4 {[%clk 0:01:59]}  b4 {[%clk 0:01:50]} 27. Qa2 {[%clk 0:01:59]}  Qd6 {[%clk 0:01:47]} 28. Qa5 {[%clk 0:01:46]}  c5 {[%clk 0:01:39]} 29. g4 {[%clk 0:01:35]}  Bf6 {[%clk 0:01:30]} 30. Be2 {[%clk 0:01:18]}  Bg5 {[%clk 0:01:28]} 31. Nf1 {[%clk 0:01:10]}  Bxe3+ {[%clk 0:01:26]} 32. Nxe3 {[%clk 0:01:11]}  Qd4 {[%clk 0:01:22]} 33. Kf2 {[%clk 0:01:10]}  Nf6 {[%clk 0:01:12]} 34. Qc7 {[%clk 0:00:58]}  Bxg4 {[%clk 0:01:07]} 35. fxg4 {[%clk 0:00:57]}  Nxe4+ {[%clk 0:01:05]} 36. Kg2 {[%clk 0:00:48]}  Kg7 {[%clk 0:00:47]} 37. Bf3 {[%clk 0:00:14]}  Qd2+ {[%clk 0:00:47]} 38. Kh1 {[%clk 0:00:11]}  Qe1+ {[%clk 0:00:40]} 39. Kg2 {[%clk 0:00:02]}  Qf2+ {[%clk 0:00:40]} 0-1


[Site "https://www.chess.com"]

[Event "Titled Tuesday Blitz July 4 Late 2023"]
[White "Papp, Levente"]
[Black "Rengifo Blancas, Renzo Jhonathan"]
[WhiteFideId "751243"]
[BlackFideId "3807185"]
[WhiteElo "2691"]
[BlackElo "2469"]
[Result "1-0"]
[Round "2"]
[TimeControl "180+2"]
[Date "2023.07.04"]
[WhiteClock "0:00:32"]
[BlackClock "0:00:07"]
[Board "61"]

1. b3 {[%clk 0:03:00]}  e5 {[%clk 0:02:59]} 2. Bb2 {[%clk 0:03:00]}  Nc6 {[%clk 0:03:00]} 3. c4 {[%clk 0:03:01]}  Nf6 {[%clk 0:02:58]} 4. g3 {[%clk 0:02:58]}  Bd6 {[%clk 0:02:58]} 5. Bg2 {[%clk 0:02:58]}  Qe7 {[%clk 0:02:59]} 6. Nc3 {[%clk 0:02:58]}  O-O {[%clk 0:02:57]} 7. Nb5 {[%clk 0:02:50]}  b6 {[%clk 0:02:50]} 8. e3 {[%clk 0:02:47]}  Bb7 {[%clk 0:02:49]} 9. Ne2 {[%clk 0:02:44]}  Rfe8 {[%clk 0:02:47]} 10. O-O {[%clk 0:02:43]}  e4 {[%clk 0:02:39]} 11. Nxd6 {[%clk 0:02:40]}  Qxd6 {[%clk 0:02:35]} 12. d3 {[%clk 0:02:17]}  exd3 {[%clk 0:02:26]} 13. Nf4 {[%clk 0:02:17]}  Na5 {[%clk 0:02:17]} 14. Bxb7 {[%clk 0:02:00]}  Nxb7 {[%clk 0:02:18]} 15. Qxd3 {[%clk 0:01:50]}  Qxd3 {[%clk 0:02:06]} 16. Nxd3 {[%clk 0:01:51]}  Ne4 {[%clk 0:02:03]} 17. Rfd1 {[%clk 0:01:46]}  d6 {[%clk 0:01:56]} 18. Nf4 {[%clk 0:01:42]}  a5 {[%clk 0:01:45]} 19. Nd5 {[%clk 0:01:31]}  Rac8 {[%clk 0:01:44]} 20. f3 {[%clk 0:01:30]}  Nec5 {[%clk 0:01:44]} 21. e4 {[%clk 0:01:29]}  Nd8 {[%clk 0:01:32]} 22. Rd2 {[%clk 0:01:24]}  Nc6 {[%clk 0:01:17]} 23. Kg2 {[%clk 0:01:21]}  f6 {[%clk 0:01:12]} 24. h4 {[%clk 0:01:19]}  h5 {[%clk 0:01:10]} 25. Nf4 {[%clk 0:01:18]}  a4 {[%clk 0:00:56]} 26. bxa4 {[%clk 0:01:18]}  Nxa4 {[%clk 0:00:56]} 27. Nxh5 {[%clk 0:01:19]}  Ne5 {[%clk 0:00:37]} 28. Rc1 {[%clk 0:01:15]}  Nxb2 {[%clk 0:00:32]} 29. Rxb2 {[%clk 0:01:13]}  Nd3 {[%clk 0:00:33]} 30. Rcc2 {[%clk 0:01:07]}  Nxb2 {[%clk 0:00:32]} 31. Rxb2 {[%clk 0:01:08]}  Kf7 {[%clk 0:00:31]} 32. Nf4 {[%clk 0:01:08]}  Ra8 {[%clk 0:00:27]} 33. Nd5 {[%clk 0:01:07]}  Ra7 {[%clk 0:00:28]} 34. Kh3 {[%clk 0:00:54]}  Rea8 {[%clk 0:00:28]} 35. Rb1 {[%clk 0:00:53]}  Ke6 {[%clk 0:00:26]} 36. Kg4 {[%clk 0:00:52]}  Kd7 {[%clk 0:00:26]} 37. h5 {[%clk 0:00:51]}  Rxa2 {[%clk 0:00:24]} 38. h6 {[%clk 0:00:51]}  gxh6 {[%clk 0:00:24]} 39. Nxf6+ {[%clk 0:00:49]}  Kc6 {[%clk 0:00:24]} 40. Rh1 {[%clk 0:00:48]}  Rh8 {[%clk 0:00:22]} 41. Nd5 {[%clk 0:00:38]}  Ra4 {[%clk 0:00:21]} 42. Ne3 {[%clk 0:00:38]}  Ra5 {[%clk 0:00:18]} 43. f4 {[%clk 0:00:36]}  h5+ {[%clk 0:00:18]} 44. Kf3 {[%clk 0:00:36]}  Ra3 {[%clk 0:00:18]} 45. f5 {[%clk 0:00:35]}  Kd7 {[%clk 0:00:14]} 46. Kf4 {[%clk 0:00:35]}  Rc3 {[%clk 0:00:13]} 47. g4 {[%clk 0:00:32]}  h4 {[%clk 0:00:08]} 48. g5 {[%clk 0:00:32]}  h3 {[%clk 0:00:08]} 49. g6 {[%clk 0:00:33]}  Ke7 {[%clk 0:00:08]} 50. Nd5+ {[%clk 0:00:33]}  Kf8 {[%clk 0:00:07]} 51. Nxc3 {[%clk 0:00:33]}  Kg7 {[%clk 0:00:08]} 52. Kg3 {[%clk 0:00:32]}  b5 {[%clk 0:00:07]} 53. Nxb5 {[%clk 0:00:32]}  Ra8 {[%clk 0:00:07]} 54. Rxh3 {[%clk 0:00:32]}  Ra4 {[%clk 0:00:07]} 55. Rh7+ {[%clk 0:00:31]}  Kf6 {[%clk 0:00:07]} 56. Kf4 {[%clk 0:00:31]}  Rxc4 {[%clk 0:00:07]} 57. Rf7# {[%clk 0:00:32]} 1-0


[Site "https://www.chess.com"]

[Event "Titled Tuesday Blitz July 4 Late 2023"]
[White "Remolar Gallen, Jose"]
[Black "Matinian, Nikita"]
[WhiteFideId "2215187"]
[BlackFideId "24129100"]
[WhiteElo "2457"]
[BlackElo "2689"]
[Result "0-1"]
[Round "2"]
[TimeControl "180+2"]
[Date "2023.07.04"]
[WhiteClock "0:00:00"]
[BlackClock "0:00:35"]
[Board "62"]

1. e4 {[%clk 0:02:58]}  c5 {[%clk 0:02:59]} 2. Nf3 {[%clk 0:02:57]}  e6 {[%clk 0:03:00]} 3. d4 {[%clk 0:02:55]}  cxd4 {[%clk 0:03:01]} 4. Nxd4 {[%clk 0:02:56]}  Nc6 {[%clk 0:03:01]} 5. Nc3 {[%clk 0:02:56]}  Qc7 {[%clk 0:03:02]} 6. Be3 {[%clk 0:02:50]}  a6 {[%clk 0:03:01]} 7. Qd2 {[%clk 0:02:48]}  Nf6 {[%clk 0:02:59]} 8. f3 {[%clk 0:02:47]}  b5 {[%clk 0:02:57]} 9. g4 {[%clk 0:02:35]}  Ne5 {[%clk 0:02:51]} 10. Bf4 {[%clk 0:01:51]}  Bb4 {[%clk 0:02:21]} 11. Be2 {[%clk 0:01:41]}  O-O {[%clk 0:02:12]} 12. h4 {[%clk 0:01:30]}  d6 {[%clk 0:01:42]} 13. h5 {[%clk 0:01:26]}  Nfd7 {[%clk 0:01:42]} 14. g5 {[%clk 0:01:20]}  Nb6 {[%clk 0:01:42]} 15. g6 {[%clk 0:00:45]}  Nbc4 {[%clk 0:01:31]} 16. Qc1 {[%clk 0:00:44]}  Nxb2 {[%clk 0:01:25]} 17. h6 {[%clk 0:00:25]}  fxg6 {[%clk 0:01:09]} 18. hxg7 {[%clk 0:00:24]}  Bxc3+ {[%clk 0:01:00]} 19. Kf1 {[%clk 0:00:24]}  Rf7 {[%clk 0:00:48]} 20. Bxe5 {[%clk 0:00:15]}  dxe5 {[%clk 0:00:46]} 21. Rxh7 {[%clk 0:00:03]}  Kxh7 {[%clk 0:00:42]} 22. Qh6+ {[%clk 0:00:04]}  Kxh6 {[%clk 0:00:42]} 23. g8=Q {[%clk 0:00:00]}  Bb7 {[%clk 0:00:35]} 0-1


[Site "https://www.chess.com"]

[Event "Titled Tuesday Blitz July 4 Late 2023"]
[White "Nasuta, Grzegorz"]
[Black "Barski, Radoslaw"]
[WhiteFideId "1141686"]
[BlackFideId "1131710"]
[WhiteElo "2687"]
[BlackElo "2456"]
[Result "1-0"]
[Round "2"]
[TimeControl "180+2"]
[Date "2023.07.04"]
[WhiteClock "0:00:55"]
[BlackClock "0:00:09"]
[Board "63"]

1. e4 {[%clk 0:03:00]}  e5 {[%clk 0:02:59]} 2. Nf3 {[%clk 0:03:00]}  Nc6 {[%clk 0:02:59]} 3. Bc4 {[%clk 0:02:59]}  Bc5 {[%clk 0:02:59]} 4. O-O {[%clk 0:02:57]}  Nf6 {[%clk 0:02:57]} 5. d3 {[%clk 0:02:58]}  d6 {[%clk 0:02:57]} 6. c3 {[%clk 0:02:56]}  a6 {[%clk 0:02:57]} 7. Bb3 {[%clk 0:02:55]}  Ba7 {[%clk 0:02:57]} 8. Re1 {[%clk 0:02:55]}  O-O {[%clk 0:02:57]} 9. h3 {[%clk 0:02:55]}  h6 {[%clk 0:02:55]} 10. Nbd2 {[%clk 0:02:56]}  Re8 {[%clk 0:02:55]} 11. Nf1 {[%clk 0:02:54]}  Be6 {[%clk 0:02:56]} 12. Bc2 {[%clk 0:02:53]}  d5 {[%clk 0:02:56]} 13. exd5 {[%clk 0:02:54]}  Bxd5 {[%clk 0:02:57]} 14. Ng3 {[%clk 0:02:53]}  Qd7 {[%clk 0:02:52]} 15. Nh4 {[%clk 0:02:54]}  Bc5 {[%clk 0:02:44]} 16. b4 {[%clk 0:02:53]}  Bf8 {[%clk 0:02:43]} 17. a4 {[%clk 0:02:53]}  g6 {[%clk 0:02:38]} 18. Qe2 {[%clk 0:02:46]}  Bg7 {[%clk 0:02:36]} 19. Ne4 {[%clk 0:02:44]}  Nh7 {[%clk 0:02:34]} 20. Nc5 {[%clk 0:02:42]}  Qc8 {[%clk 0:02:34]} 21. a5 {[%clk 0:02:42]}  g5 {[%clk 0:02:28]} 22. Nf3 {[%clk 0:02:41]}  f5 {[%clk 0:02:28]} 23. Nd2 {[%clk 0:02:29]}  b6 {[%clk 0:01:41]} 24. axb6 {[%clk 0:02:25]}  cxb6 {[%clk 0:01:42]} 25. Bb3 {[%clk 0:02:19]}  Bxb3 {[%clk 0:01:36]} 26. Ncxb3 {[%clk 0:02:20]}  Qc7 {[%clk 0:01:36]} 27. Nc4 {[%clk 0:02:15]}  e4 {[%clk 0:01:26]} 28. d4 {[%clk 0:02:06]}  f4 {[%clk 0:01:22]} 29. Ncd2 {[%clk 0:01:47]}  Qf7 {[%clk 0:00:59]} 30. Nxe4 {[%clk 0:01:39]}  Qxb3 {[%clk 0:00:57]} 31. Rxa6 {[%clk 0:01:31]}  Rxa6 {[%clk 0:00:24]} 32. Qxa6 {[%clk 0:01:32]}  Qc2 {[%clk 0:00:23]} 33. Qc4+ {[%clk 0:01:21]}  Kf8 {[%clk 0:00:13]} 34. Qxc6 {[%clk 0:01:20]}  Bf6 {[%clk 0:00:12]} 35. b5 {[%clk 0:00:58]}  Bg7 {[%clk 0:00:12]} 36. Ba3+ {[%clk 0:00:55]}  Kg8 {[%clk 0:00:09]} 37. Qxe8+ {[%clk 0:00:55]} 1-0


[Site "https://www.chess.com"]

[Event "Titled Tuesday Blitz July 4 Late 2023"]
[White "Mickiewicz, Piotr"]
[Black "benny_aizenberg"]
[WhiteFideId "1114891"]
[WhiteElo "2427"]
[BlackElo "2683"]
[Result "0-1"]
[Round "2"]
[TimeControl "180+2"]
[Date "2023.07.04"]
[WhiteClock "0:00:15"]
[BlackClock "0:00:10"]
[Board "65"]

1. e4 {[%clk 0:03:00]}  c5 {[%clk 0:02:58]} 2. Nf3 {[%clk 0:03:01]}  d6 {[%clk 0:02:58]} 3. Nc3 {[%clk 0:03:01]}  Nf6 {[%clk 0:02:57]} 4. d3 {[%clk 0:02:56]}  Nc6 {[%clk 0:02:55]} 5. g3 {[%clk 0:02:56]}  g6 {[%clk 0:02:54]} 6. Bg2 {[%clk 0:02:56]}  Bg7 {[%clk 0:02:55]} 7. O-O {[%clk 0:02:55]}  O-O {[%clk 0:02:55]} 8. h3 {[%clk 0:02:49]}  Rb8 {[%clk 0:02:55]} 9. a4 {[%clk 0:02:48]}  a6 {[%clk 0:02:52]} 10. Be3 {[%clk 0:02:48]}  b5 {[%clk 0:02:50]} 11. axb5 {[%clk 0:02:49]}  axb5 {[%clk 0:02:50]} 12. Qd2 {[%clk 0:02:49]}  b4 {[%clk 0:02:47]} 13. Ne2 {[%clk 0:02:48]}  Bb7 {[%clk 0:02:22]} 14. Bh6 {[%clk 0:02:47]}  Qb6 {[%clk 0:02:16]} 15. g4 {[%clk 0:02:33]}  Rfd8 {[%clk 0:01:51]} 16. Bxg7 {[%clk 0:02:31]}  Kxg7 {[%clk 0:01:51]} 17. Ng3 {[%clk 0:02:31]}  Ne5 {[%clk 0:01:23]} 18. Nxe5 {[%clk 0:02:28]}  dxe5 {[%clk 0:01:23]} 19. f4 {[%clk 0:02:25]}  c4+ {[%clk 0:01:20]} 20. Kh2 {[%clk 0:02:23]}  exf4 {[%clk 0:01:18]} 21. Qxf4 {[%clk 0:02:22]}  Qe6 {[%clk 0:01:08]} 22. d4 {[%clk 0:02:12]}  Nd7 {[%clk 0:00:41]} 23. Ra7 {[%clk 0:01:50]}  f6 {[%clk 0:00:36]} 24. h4 {[%clk 0:00:55]}  Qb6 {[%clk 0:00:30]} 25. Rxb7 {[%clk 0:00:30]}  Rxb7 {[%clk 0:00:22]} 26. c3 {[%clk 0:00:31]}  bxc3 {[%clk 0:00:20]} 27. bxc3 {[%clk 0:00:32]}  Ra7 {[%clk 0:00:19]} 28. e5 {[%clk 0:00:32]}  Ra2 {[%clk 0:00:18]} 29. Ne4 {[%clk 0:00:23]}  Rf8 {[%clk 0:00:14]} 30. h5 {[%clk 0:00:23]}  fxe5 {[%clk 0:00:11]} 31. h6+ {[%clk 0:00:22]}  Kg8 {[%clk 0:00:11]} 32. Qg5 {[%clk 0:00:20]}  Rxf1 {[%clk 0:00:10]} 33. Qxe7 {[%clk 0:00:20]}  Rf7 {[%clk 0:00:10]} 34. Qe8+ {[%clk 0:00:16]}  Nf8 {[%clk 0:00:10]} 35. Ng5 {[%clk 0:00:16]}  Qb7 {[%clk 0:00:10]} 36. Nxf7 {[%clk 0:00:15]}  Qxg2# {[%clk 0:00:10]} 0-1


[Site "https://www.chess.com"]

[Event "Titled Tuesday Blitz July 4 Late 2023"]
[White "Kanyamarala, Trisha"]
[Black "Stoleriu, George"]
[WhiteFideId "45004722"]
[BlackFideId "1227505"]
[WhiteElo "2383"]
[BlackElo "2663"]
[Result "0-1"]
[Round "2"]
[TimeControl "180+2"]
[Date "2023.07.04"]
[WhiteClock "0:00:11"]
[BlackClock "0:01:45"]
[Board "68"]

1. c4 {[%clk 0:03:00]}  e6 {[%clk 0:03:00]} 2. Nc3 {[%clk 0:03:00]}  b6 {[%clk 0:03:01]} 3. d4 {[%clk 0:02:51]}  Bb7 {[%clk 0:03:02]} 4. d5 {[%clk 0:02:49]}  Bb4 {[%clk 0:02:58]} 5. Bd2 {[%clk 0:02:40]}  Nf6 {[%clk 0:02:58]} 6. Nf3 {[%clk 0:02:26]}  O-O {[%clk 0:02:53]} 7. dxe6 {[%clk 0:01:26]}  fxe6 {[%clk 0:02:50]} 8. e3 {[%clk 0:01:26]}  Nc6 {[%clk 0:02:37]} 9. Bd3 {[%clk 0:01:21]}  Ng4 {[%clk 0:02:33]} 10. O-O {[%clk 0:01:19]}  Nce5 {[%clk 0:02:33]} 11. Nxe5 {[%clk 0:01:11]}  Nxe5 {[%clk 0:02:34]} 12. Be4 {[%clk 0:01:07]}  Bxe4 {[%clk 0:02:25]} 13. Nxe4 {[%clk 0:01:06]}  Bxd2 {[%clk 0:02:26]} 14. Qxd2 {[%clk 0:01:04]}  Nxc4 {[%clk 0:02:25]} 15. Qd4 {[%clk 0:01:00]}  Na5 {[%clk 0:02:23]} 16. Rfd1 {[%clk 0:00:57]}  d5 {[%clk 0:02:17]} 17. Ng3 {[%clk 0:00:57]}  c5 {[%clk 0:02:08]} 18. Qe5 {[%clk 0:00:56]}  Qf6 {[%clk 0:02:07]} 19. Qc7 {[%clk 0:00:53]}  Rf7 {[%clk 0:02:00]} 20. Qd6 {[%clk 0:00:40]}  Rd8 {[%clk 0:02:00]} 21. Qf4 {[%clk 0:00:36]}  Qxf4 {[%clk 0:01:57]} 22. exf4 {[%clk 0:00:36]}  Rxf4 {[%clk 0:01:58]} 23. Re1 {[%clk 0:00:36]}  Kf7 {[%clk 0:01:56]} 24. Re3 {[%clk 0:00:36]}  Nc4 {[%clk 0:01:55]} 25. Re2 {[%clk 0:00:35]}  d4 {[%clk 0:01:54]} 26. Rd1 {[%clk 0:00:34]}  d3 {[%clk 0:01:53]} 27. Red2 {[%clk 0:00:24]}  Nxd2 {[%clk 0:01:53]} 28. Rxd2 {[%clk 0:00:25]}  Rc4 {[%clk 0:01:52]} 29. f3 {[%clk 0:00:24]}  Rc2 {[%clk 0:01:52]} 30. Rd1 {[%clk 0:00:23]}  Rxb2 {[%clk 0:01:51]} 31. Ne4 {[%clk 0:00:22]}  h6 {[%clk 0:01:50]} 32. Kf1 {[%clk 0:00:17]}  Rxa2 {[%clk 0:01:50]} 33. Ke1 {[%clk 0:00:17]}  Rxg2 {[%clk 0:01:50]} 34. Kf1 {[%clk 0:00:16]}  Rxh2 {[%clk 0:01:50]} 35. Ng3 {[%clk 0:00:15]}  c4 {[%clk 0:01:47]} 36. Rc1 {[%clk 0:00:15]}  d2 {[%clk 0:01:47]} 37. Rd1 {[%clk 0:00:15]}  c3 {[%clk 0:01:47]} 38. Ne2 {[%clk 0:00:11]}  c2 {[%clk 0:01:45]} 0-1


[Site "https://www.chess.com"]

[Event "Titled Tuesday Blitz July 4 Late 2023"]
[White "Fantastic_Power"]
[Black "Mindhunter08"]
[WhiteElo "2660"]
[BlackElo "2379"]
[Result "1-0"]
[Round "2"]
[TimeControl "180+2"]
[Date "2023.07.04"]
[WhiteClock "0:00:08"]
[BlackClock "0:00:00"]
[Board "70"]

1. e4 {[%clk 0:03:00]}  e5 {[%clk 0:03:00]} 2. Nf3 {[%clk 0:03:00]}  Nc6 {[%clk 0:03:00]} 3. Bc4 {[%clk 0:02:57]}  Nf6 {[%clk 0:03:00]} 4. d4 {[%clk 0:02:56]}  exd4 {[%clk 0:03:00]} 5. O-O {[%clk 0:02:56]}  Nxe4 {[%clk 0:03:01]} 6. Re1 {[%clk 0:02:57]}  d5 {[%clk 0:03:01]} 7. Bxd5 {[%clk 0:02:58]}  Qxd5 {[%clk 0:03:02]} 8. Nc3 {[%clk 0:02:59]}  Qd7 {[%clk 0:03:02]} 9. Nxe4 {[%clk 0:02:58]}  Be7 {[%clk 0:03:03]} 10. Bg5 {[%clk 0:02:57]}  O-O {[%clk 0:03:03]} 11. Bxe7 {[%clk 0:02:56]}  Qxe7 {[%clk 0:03:04]} 12. Nxd4 {[%clk 0:02:56]}  Bd7 {[%clk 0:03:01]} 13. Nc3 {[%clk 0:02:47]}  Qg5 {[%clk 0:02:32]} 14. Nf3 {[%clk 0:02:36]}  Qf5 {[%clk 0:02:26]} 15. Nh4 {[%clk 0:02:28]}  Qg4 {[%clk 0:02:23]} 16. Qxg4 {[%clk 0:01:39]}  Bxg4 {[%clk 0:02:24]} 17. Nd5 {[%clk 0:01:39]}  Rac8 {[%clk 0:02:21]} 18. c3 {[%clk 0:01:37]}  Be6 {[%clk 0:02:13]} 19. Nf4 {[%clk 0:01:31]}  Bc4 {[%clk 0:02:07]} 20. Nf3 {[%clk 0:01:30]}  Rfe8 {[%clk 0:02:05]} 21. b3 {[%clk 0:01:28]}  Ba6 {[%clk 0:01:52]} 22. h3 {[%clk 0:01:16]}  Kf8 {[%clk 0:01:40]} 23. Nd5 {[%clk 0:01:01]}  Red8 {[%clk 0:01:35]} 24. c4 {[%clk 0:00:58]}  b5 {[%clk 0:01:33]} 25. cxb5 {[%clk 0:00:51]}  Bxb5 {[%clk 0:01:25]} 26. Nc3 {[%clk 0:00:51]}  Bd3 {[%clk 0:01:19]} 27. Rad1 {[%clk 0:00:37]}  Bg6 {[%clk 0:01:12]} 28. Nd5 {[%clk 0:00:33]}  Rd6 {[%clk 0:00:56]} 29. Ne3 {[%clk 0:00:29]}  Rcd8 {[%clk 0:00:51]} 30. Rc1 {[%clk 0:00:29]}  R8d7 {[%clk 0:00:18]} 31. Rc5 {[%clk 0:00:27]}  Nb4 {[%clk 0:00:13]} 32. Ne5 {[%clk 0:00:26]}  Re7 {[%clk 0:00:10]} 33. a3 {[%clk 0:00:26]}  Na6 {[%clk 0:00:06]} 34. Ra5 {[%clk 0:00:22]}  f6 {[%clk 0:00:05]} 35. Nxg6+ {[%clk 0:00:16]}  hxg6 {[%clk 0:00:06]} 36. Rc1 {[%clk 0:00:16]}  f5 {[%clk 0:00:05]} 37. g3 {[%clk 0:00:16]}  Kf7 {[%clk 0:00:06]} 38. b4 {[%clk 0:00:16]}  Nb8 {[%clk 0:00:04]} 39. Rxa7 {[%clk 0:00:16]}  Nc6 {[%clk 0:00:05]} 40. Ra6 {[%clk 0:00:14]}  Nd4 {[%clk 0:00:06]} 41. Rxd6 {[%clk 0:00:13]}  cxd6 {[%clk 0:00:06]} 42. Kg2 {[%clk 0:00:14]}  Ra7 {[%clk 0:00:05]} 43. Ra1 {[%clk 0:00:14]}  Nb3 {[%clk 0:00:06]} 44. Ra2 {[%clk 0:00:14]}  Nc1 {[%clk 0:00:04]} 45. Rc2 {[%clk 0:00:14]}  Nd3 {[%clk 0:00:05]} 46. Nc4 {[%clk 0:00:14]}  d5 {[%clk 0:00:05]} 47. Nd6+ {[%clk 0:00:12]}  Ke6 {[%clk 0:00:05]} 48. Nb5 {[%clk 0:00:12]}  Rb7 {[%clk 0:00:04]} 49. Nd4+ {[%clk 0:00:12]}  Ke5 {[%clk 0:00:05]} 50. Nf3+ {[%clk 0:00:13]}  Kf6 {[%clk 0:00:05]} 51. Rd2 {[%clk 0:00:12]}  Ne5 {[%clk 0:00:04]} 52. Rxd5 {[%clk 0:00:11]}  Nc4 {[%clk 0:00:05]} 53. Rd3 {[%clk 0:00:09]}  g5 {[%clk 0:00:05]} 54. Nd2 {[%clk 0:00:09]}  Ne5 {[%clk 0:00:05]} 55. Rc3 {[%clk 0:00:09]}  g4 {[%clk 0:00:05]} 56. hxg4 {[%clk 0:00:09]}  fxg4 {[%clk 0:00:06]} 57. Rb3 {[%clk 0:00:08]}  Ke6 {[%clk 0:00:07]} 58. b5 {[%clk 0:00:09]}  Kf5 {[%clk 0:00:05]} 59. a4 {[%clk 0:00:08]}  Rd7 {[%clk 0:00:06]} 60. Nf1 {[%clk 0:00:07]}  Nf3 {[%clk 0:00:07]} 61. b6 {[%clk 0:00:05]}  Ne1+ {[%clk 0:00:04]} 62. Kh1 {[%clk 0:00:04]}  Rd8 {[%clk 0:00:05]} 63. Ne3+ {[%clk 0:00:04]}  Kg5 {[%clk 0:00:05]} 64. Rb5+ {[%clk 0:00:04]}  Kg6 {[%clk 0:00:05]} 65. Nxg4 {[%clk 0:00:05]}  Nf3 {[%clk 0:00:05]} 66. Kg2 {[%clk 0:00:05]}  Ne1+ {[%clk 0:00:06]} 67. Kf1 {[%clk 0:00:05]}  Nf3 {[%clk 0:00:06]} 68. Ne5+ {[%clk 0:00:06]}  Nxe5 {[%clk 0:00:06]} 69. Rxe5 {[%clk 0:00:06]}  Rd1+ {[%clk 0:00:06]} 70. Kg2 {[%clk 0:00:07]}  Rb1 {[%clk 0:00:07]} 71. Rb5 {[%clk 0:00:06]}  Ra1 {[%clk 0:00:07]} 72. b7 {[%clk 0:00:07]}  Rxa4 {[%clk 0:00:00]} 73. b8=Q {[%clk 0:00:08]} 1-0


[Site "https://www.chess.com"]

[Event "Titled Tuesday Blitz July 4 Late 2023"]
[White "Kovacsy, Barnabas"]
[Black "Aldokhin, Ivan"]
[WhiteFideId "769290"]
[BlackFideId "24115720"]
[WhiteElo "2367"]
[BlackElo "2659"]
[Result "0-1"]
[Round "2"]
[TimeControl "180+2"]
[Date "2023.07.04"]
[WhiteClock "0:00:01"]
[BlackClock "0:00:08"]
[Board "71"]

1. e4 {[%clk 0:03:00]}  c5 {[%clk 0:02:59]} 2. Nf3 {[%clk 0:03:00]}  e6 {[%clk 0:03:00]} 3. d4 {[%clk 0:03:00]}  cxd4 {[%clk 0:03:00]} 4. Nxd4 {[%clk 0:03:01]}  a6 {[%clk 0:03:01]} 5. Bd3 {[%clk 0:03:00]}  Qc7 {[%clk 0:03:01]} 6. c4 {[%clk 0:02:54]}  Nf6 {[%clk 0:03:01]} 7. Nc3 {[%clk 0:02:53]}  d6 {[%clk 0:03:02]} 8. O-O {[%clk 0:02:52]}  g6 {[%clk 0:03:00]} 9. Qe2 {[%clk 0:02:51]}  Bg7 {[%clk 0:03:01]} 10. Kh1 {[%clk 0:02:48]}  O-O {[%clk 0:02:54]} 11. f4 {[%clk 0:02:46]}  Nc6 {[%clk 0:02:49]} 12. Nxc6 {[%clk 0:02:46]}  bxc6 {[%clk 0:02:49]} 13. f5 {[%clk 0:02:40]}  Nd7 {[%clk 0:02:35]} 14. Bg5 {[%clk 0:02:25]}  Re8 {[%clk 0:02:27]} 15. Rac1 {[%clk 0:02:01]}  Rb8 {[%clk 0:02:13]} 16. Qf2 {[%clk 0:01:52]}  Ne5 {[%clk 0:02:05]} 17. fxg6 {[%clk 0:01:47]}  fxg6 {[%clk 0:02:01]} 18. Bb1 {[%clk 0:01:34]}  c5 {[%clk 0:01:50]} 19. b3 {[%clk 0:01:16]}  Bd7 {[%clk 0:01:49]} 20. Qh4 {[%clk 0:01:12]}  Bc6 {[%clk 0:01:41]} 21. Bf6 {[%clk 0:01:11]}  Rf8 {[%clk 0:01:36]} 22. Be7 {[%clk 0:01:02]}  Rxf1+ {[%clk 0:01:35]} 23. Rxf1 {[%clk 0:01:03]}  Re8 {[%clk 0:01:35]} 24. Bg5 {[%clk 0:01:01]}  Rf8 {[%clk 0:01:27]} 25. Rxf8+ {[%clk 0:00:59]}  Bxf8 {[%clk 0:01:26]} 26. Ne2 {[%clk 0:00:54]}  Qb7 {[%clk 0:00:57]} 27. Bf6 {[%clk 0:00:22]}  Nxc4 {[%clk 0:00:45]} 28. Nf4 {[%clk 0:00:08]}  Nd2 {[%clk 0:00:21]} 29. Nxe6 {[%clk 0:00:05]}  Nxb1 {[%clk 0:00:18]} 30. Nxf8 {[%clk 0:00:06]}  Kxf8 {[%clk 0:00:16]} 31. Bb2 {[%clk 0:00:04]}  Qe7 {[%clk 0:00:10]} 32. Qh6+ {[%clk 0:00:02]}  Ke8 {[%clk 0:00:09]} 33. Qc1 {[%clk 0:00:02]}  Qxe4 {[%clk 0:00:09]} 34. Qg1 {[%clk 0:00:01]}  Nd2 {[%clk 0:00:09]} 35. Bc3 {[%clk 0:00:01]}  Nf3 {[%clk 0:00:08]} 36. gxf3 {[%clk 0:00:01]}  Qxf3+ {[%clk 0:00:08]} 0-1


[Site "https://www.chess.com"]